bitfinex-derivatives/quotes_SOLF0:USTF0_20250518
["timestamp","ask_amount","ask_price","bid_price","bid_amount"]
[1747594060296,133.74,170.13,170.05,66.86]
[1747594060494,5.8768,170.09,170.05,72.7379]
[1747594061192,133.74,170.13,170.06,5.8777]
[1747594061595,1.8895,170.12,170.06,5.8777]
[1747594061800,5.8766,170.1,170.06,5.8777]
[1747594062000,1.8895,170.12,170.02,1.9216]
[1747594062198,1.8895,170.12,170.01,66.88]
[1747594062199,4.67749677,170.11,170.01,66.88]
[1747594062407,5.878,170.06,169.97,66.88]
[1747594062703,66.84,170.05,170.01,5.8792]
[1747594062902,72.7182,170.05,169.97,66.88]
[1747594063102,72.7182,170.05,170.01,5.8792]
[1747594063296,72.7182,170.05,169.97,66.88]
[1747594063498,66.84,170.05,170.02,5.8791]
[1747594063797,66.84,170.05,169.97,66.88]
[1747594064902,72.7181,170.05,170.02,5.8789]
[1747594065097,66.84,170.05,169.97,66.88]
[1747594065500,66.84,170.05,170.03,5.8785]
[1747594066707,66.84,170.05,169.97,66.88]
[1747594067102,66.84,170.1,169.97,66.88]
[1747594067302,3.89,170.11,169.97,66.88]
[1747594067506,70.73,170.11,169.97,66.88]
[1747594068608,68.7198,170.11,169.97,66.88]
[1747594069507,5.8772,170.08,169.97,66.88]
[1747594069917,68.7198,170.11,169.97,66.88]
[1747594070114,68.7198,170.11,169.97,133.7]
[1747594070611,5.8771,170.08,169.97,133.7]
[1747594070813,68.7198,170.11,169.97,133.7]
[1747594071515,2.80206808,170.1,169.97,66.88]
[1747594071713,5.878,170.06,169.97,66.88]
[1747594071915,66.8,170.06,169.97,66.88]
[1747594072110,66.8,170.06,170.05,5.8781]
[1747594072914,66.9,170.08,170.06,5.8777]
[1747594073214,66.9,170.08,169.97,66.88]
[1747594073408,66.8,170.09,169.97,66.88]
[1747594074405,66.8,170.09,169.98,66.8]
[1747594074608,5.8773,170.08,170.04,5.8784]
[1747594074813,5.8773,170.08,169.98,66.8]
[1747594075113,72.6768,170.09,170.06,5.8777]
[1747594075314,66.8,170.09,170.06,5.8777]
[1747594076017,66.8,170.09,169.98,66.8]
[1747594076217,66.8,170.09,169.97,66.88]
[1747594076619,66.8,170.09,170.01,5.8792]
[1747594076915,5.8783,170.05,170.01,5.8792]
[1747594077114,66.92,170.07,169.97,66.88]
[1747594077310,5.8779,170.06,169.97,66.88]
[1747594077717,66.92,170.07,170.03,5.8787]
[1747594078018,66.92,170.07,169.97,66.88]
[1747594078217,1.8798,170.11,170.07,5.8773]
[1747594078520,66.78,170.1,170.07,5.8773]
[1747594078911,72.6564,170.1,170.06,5.8776]
[1747594079617,5.8767,170.09,170.05,5.878]
[1747594079918,66.78,170.1,170.02,66.92]
[1747594080115,66.78,170.1,170.0,66.78]
[1747594081017,66.78,170.1,169.98,66.92]
[1747594081213,2.80215197,170.09,169.98,66.92]
[1747594081420,14.13663372,170.07,169.93,580.3862]
[1747594081608,68.8235,170.06,169.93,578.4415]
[1747594081815,66.76,170.05,169.93,578.4415]
[1747594082015,66.76,170.05,169.93,68.8184]
[1747594082317,14.13663372,170.03,169.93,66.92]
[1747594082719,3.8548,170.04,169.93,66.92]
[1747594082920,66.76,170.02,169.93,133.68]
[1747594084122,66.76,170.02,169.93,66.92]
[1747594084931,66.76,170.02,169.89,70.6769]
[1747594085117,2.80066124,170.01,169.89,70.6769]
[1747594085422,66.76,170.02,169.89,70.6769]
[1747594085825,2.79958114,170.01,169.89,70.6769]
[1747594086123,66.76,170.02,169.93,5.8821]
[1747594086529,66.76,170.02,169.89,68.807]
[1747594087115,66.76,170.01,169.89,68.807]
[1747594087313,66.76,170.01,169.89,82.94363372]
[1747594087516,72.1040343,170.06,169.89,82.94363372]
[1747594087716,72.1040343,170.06,169.93,14.13663372]
[1747594087918,72.1040343,170.06,169.94,135.4292]
[1747594088420,72.1040343,170.06,169.95,1.8794]
[1747594088620,72.1040343,170.06,170.01,5.8795]
[1747594088821,72.1040343,170.06,169.98,66.76]
[1747594089122,72.1040343,170.06,170.02,5.8789]
[1747594089326,72.1040343,170.06,169.98,66.76]
[1747594089723,77.9819343,170.06,169.98,66.76]
[1747594089916,66.76,170.06,169.98,66.76]
[1747594090320,66.76,170.06,170.02,5.8789]
[1747594090522,66.76,170.06,169.98,66.76]
[1747594090821,5.877,170.09,170.04,5.8782]
[1747594091020,66.76,170.08,170.04,5.8782]
[1747594091217,66.76,170.08,169.99,1.957]
[1747594091417,5.8781,170.05,170.01,5.8794]
[1747594091625,66.76,170.08,169.99,1.957]
[1747594091822,2.80256855,170.07,169.98,66.76]
[1747594092127,16.93908055,170.06,169.94,66.76]
[1747594092430,5.8802,169.99,169.95,5.8815]
[1747594092818,66.76,170.0,169.94,66.76]
[1747594093621,66.76,170.0,169.97,5.8807]
[1747594094127,66.76,170.0,169.94,66.76]
[1747594094529,72.6398,170.0,169.96,5.881]
[1747594094738,66.76,170.0,169.94,66.76]
[1747594095035,66.76,170.02,169.94,66.76]
[1747594095221,66.76,170.03,170.0,5.8796]
[1747594095717,66.76,170.03,170.01,5.8795]
[1747594095923,66.76,170.03,169.95,66.76]
[1747594096218,66.76,170.03,170.02,5.8791]
[1747594096528,66.76,170.03,169.95,70.6771]
[1747594096728,66.76,170.03,170.01,5.8794]
[1747594097033,66.76,170.03,169.95,70.6771]
[1747594098626,66.76,170.03,169.93,66.76]
[1747594098829,1.9904,170.02,169.93,66.76]
[1747594099126,5.8802,169.99,169.95,5.8813]
[1747594099524,5.8799,170.0,169.96,5.8812]
[1747594099719,66.76,170.01,169.86,3.7313]
[1747594100028,2.81541162,170.0,169.87,66.76]
[1747594100231,2.81541162,169.99,169.87,66.76]
[1747594100531,5.8815,169.96,169.87,66.76]
[1747594100724,66.76,169.98,169.87,66.76]
[1747594101029,5.8816,169.95,169.92,5.8824]
[1747594101216,66.76,169.98,169.87,66.76]
[1747594101420,66.76,169.99,169.87,66.76]
[1747594102227,5.8808,169.98,169.87,66.76]
[1747594102430,66.76,169.99,169.87,66.76]
[1747594102826,2.8267125,169.98,169.87,66.76]
[1747594103031,66.76,169.99,169.87,66.76]
[1747594103327,2.82638297,169.98,169.87,66.76]
[1747594103533,5.8813,169.96,169.87,66.76]
[1747594103834,66.76,169.99,169.87,66.76]
[1747594104738,66.76,169.99,169.96,5.881]
[1747594104939,66.76,169.99,169.92,66.78]
[1747594105429,2.8278759,169.98,169.89,66.78]
[1747594105629,66.76,169.99,169.89,66.78]
[1747594105832,5.8811,169.97,169.93,5.882]
[1747594106133,66.76,169.99,169.89,66.78]
[1747594106332,2.82799664,169.98,169.93,5.882]
[1747594106534,2.8277654,169.97,169.89,66.78]
[1747594106721,2.82753156,169.96,169.89,66.78]
[1747594107035,5.8822,169.94,169.86,3.7313]
[1747594107433,5.8823,169.93,169.86,3.7313]
[1747594107828,66.78,169.96,169.86,3.7313]
[1747594108132,5.882,169.94,169.9,5.883]
[1747594108336,66.78,169.96,169.86,3.7313]
[1747594108533,14.13663372,170.04,169.86,3.7313]
[1747594108725,136.3658611,170.01,169.86,3.7313]
[1747594108928,5.3440343,169.98,169.86,3.7313]
[1747594109433,5.3440343,169.98,169.95,5.8816]
[1747594109627,5.3440343,169.98,169.91,66.78]
[1747594110034,5.3440343,169.98,169.95,5.8813]
[1747594110434,5.3440343,169.98,169.97,5.8809]
[1747594111835,133.54,170.01,169.92,1.8762]
[1747594112024,66.78,170.01,169.92,1.8762]
[1747594112227,66.78,170.01,169.99,5.8802]
[1747594112829,66.76,170.02,169.92,1.8762]
[1747594113143,14.13663372,170.0,169.85,7.28571619]
[1747594113436,4.83005523,169.99,169.86,66.78]
[1747594113630,2.82033699,169.98,169.86,66.78]
[1747594113835,5.8827,169.92,169.88,5.8838]
[1747594114037,66.78,169.95,169.86,66.78]
[1747594114236,2.82046923,169.94,169.86,66.78]
[1747594114537,5.8832,169.91,169.87,5.8843]
[1747594115031,66.74,169.92,169.87,5.8843]
[1747594115235,66.74,169.92,169.88,5.884]
[1747594115437,72.6228,169.92,169.88,5.884]
[1747594115640,66.74,169.92,169.87,5.8843]
[1747594115832,66.74,169.92,169.86,66.78]
[1747594116537,5.8835,169.9,169.86,66.78]
[1747594116737,66.74,169.92,169.86,72.6646]
[1747594116929,66.74,169.92,169.86,66.78]
[1747594117130,66.74,169.92,169.82,66.78]
[1747594117643,5.3440343,169.96,169.82,80.91663372]
[1747594117831,72.1040343,169.96,169.82,80.91663372]
[1747594118031,77.9855343,169.96,169.82,80.91663372]
[1747594118336,72.1040343,169.96,169.82,80.91663372]
[1747594118839,66.74,169.95,169.82,80.91663372]
[1747594119140,5.8823,169.93,169.82,80.91663372]
[1747594119340,66.74,169.95,169.82,80.91663372]
[1747594119540,2.81828708,169.94,169.82,66.78]
[1747594119850,69.55832084,169.93,169.82,66.78]
[1747594120137,4.85032084,169.92,169.82,66.78]
[1747594120336,5.8833,169.9,169.85,5.885]
[1747594120537,72.6233,169.9,169.82,66.78]
[1747594120736,66.74,169.9,169.82,66.78]
[1747594120940,5.8841,169.88,169.84,5.8851]
[1747594121243,5.8841,169.88,169.82,66.78]
[1747594121541,5.8839,169.89,169.82,66.78]
[1747594121736,66.74,169.9,169.82,66.78]
[1747594122740,5.8844,169.87,169.84,5.8853]
[1747594122940,3.915,169.89,169.84,5.8853]
[1747594123743,69.57696366,169.88,169.78,66.76]
[1747594124040,16.95359738,169.87,169.74,66.76]
[1747594124240,2.81696366,169.86,169.74,66.76]
[1747594124445,69.57696366,169.85,169.74,66.76]
[1747594124743,4.69986366,169.84,169.74,66.76]
[1747594124943,69.57696366,169.83,169.74,66.76]
[1747594125139,66.76,169.83,169.74,66.76]
[1747594125840,66.76,169.83,169.8,5.8867]
[1747594126039,66.76,169.83,169.74,66.76]
[1747594126443,66.76,169.83,169.8,5.8865]
[1747594126646,66.76,169.83,169.74,66.76]
[1747594128145,72.646,169.83,169.78,5.8872]
[1747594128337,66.76,169.83,169.74,66.76]
[1747594128744,5.8863,169.82,169.77,5.8877]
[1747594128946,66.76,169.83,169.74,66.76]
[1747594129247,5.8868,169.8,169.76,5.8879]
[1747594129444,66.78,169.8,169.74,66.76]
[1747594129651,66.78,169.8,169.71,1.8461]
[1747594129851,66.78,169.8,169.73,5.8889]
[1747594130048,3.8762,169.79,169.7,66.78]
[1747594130237,5.8883,169.76,169.7,66.78]
[1747594130440,66.78,169.78,169.7,66.78]
[1747594130946,72.6675,169.78,169.7,66.78]
[1747594131150,66.78,169.78,169.7,66.78]
[1747594131643,5.8885,169.76,169.7,66.78]
[1747594131849,66.84,169.75,169.7,66.78]
[1747594132144,66.84,169.75,169.66,68.8237]
[1747594132449,5.8893,169.73,169.66,68.8237]
[1747594132651,66.84,169.75,169.66,68.8237]
[1747594133247,66.84,169.75,169.59,508.64]
[1747594133454,66.84,169.75,169.6,133.56]
[1747594133645,66.84,169.75,169.6,135.4103]
[1747594133952,66.84,169.75,169.61,66.78]
[1747594134350,5.8895,169.72,169.61,66.78]
[1747594134747,66.78,169.73,169.61,66.78]
[1747594134952,66.78,169.73,169.6,135.4103]
[1747594135152,66.78,169.73,169.6,68.6303]
[1747594135352,5.8899,169.71,169.66,5.8913]
[1747594135542,66.8,169.7,169.6,135.4103]
[1747594135949,72.6904,169.7,169.66,5.8914]
[1747594136145,66.8,169.7,169.6,135.4103]
[1747594136558,66.8,169.7,169.68,5.8909]
[1747594136750,66.8,169.7,169.6,135.4103]
[1747594137652,66.8,169.7,169.67,5.8912]
[1747594137854,66.8,169.7,169.6,135.4103]
[1747594138252,66.8,169.7,169.69,5.8906]
[1747594139155,66.8,169.7,169.6,135.4103]
[1747594139654,66.8,169.7,169.67,5.8912]
[1747594139857,66.8,169.7,169.6,135.4103]
[1747594140254,1.8742,169.77,169.6,135.4103]
[1747594140455,133.62,169.76,169.61,25.92343372]
[1747594140652,133.62,169.76,169.72,5.8893]
[1747594140958,133.62,169.76,169.68,66.82]
[1747594141355,3.8762,169.79,169.68,66.82]
[1747594141551,1.9921,169.79,169.68,68.7358]
[1747594141754,1.9921,169.79,169.75,5.8882]
[1747594142055,1.9921,169.79,169.68,68.7358]
[1747594142257,5.8878,169.78,169.74,5.8888]
[1747594142658,1.9921,169.79,169.68,68.7358]
[1747594143358,1.9921,169.79,169.73,5.8889]
[1747594143658,1.9921,169.79,169.68,68.7358]
[1747594143858,5.8879,169.77,169.72,5.8892]
[1747594144059,1.9921,169.79,169.68,66.82]
[1747594144657,66.82,169.78,169.68,66.82]
[1747594144852,66.82,169.8,169.68,66.82]
[1747594145461,66.82,169.8,169.76,5.8878]
[1747594145661,66.82,169.8,169.73,66.82]
[1747594145863,66.82,169.81,169.73,66.82]
[1747594146165,68.7568,169.85,169.73,66.82]
[1747594146356,66.82,169.84,169.73,66.82]
[1747594146763,133.64,169.85,169.73,66.82]
[1747594146964,66.82,169.87,169.73,66.82]
[1747594147662,66.82,169.87,169.84,5.8853]
[1747594147859,66.82,169.87,169.72,5.9]
[1747594147860,66.82,169.87,169.8,66.8]
[1747594149463,72.7043,169.87,169.82,5.886]
[1747594149658,66.82,169.87,169.8,66.8]
[1747594149965,66.82,169.87,169.83,5.8854]
[1747594150163,1.17744024,169.86,169.8,66.8]
[1747594151868,1.17744024,169.86,169.85,5.885]
[1747594152068,66.84,169.91,169.85,5.885]
[1747594152265,66.84,169.91,169.81,1.9225]
[1747594152979,133.66,169.93,169.82,70.8653]
[1747594153472,139.5423,169.93,169.88,5.8837]
[1747594153674,133.66,169.93,169.88,5.8837]
[1747594153874,133.66,169.93,169.85,66.78]
[1747594154077,5.8829,169.92,169.87,5.8841]
[1747594154375,133.56,169.93,169.85,66.78]
[1747594154575,66.78,169.93,169.85,66.78]
[1747594155679,5.883,169.91,169.85,66.78]
[1747594155870,66.78,169.93,169.85,66.78]
[1747594156275,68.7626,169.97,169.85,66.78]
[1747594156475,66.78,169.96,169.85,66.78]
[1747594156980,5.8816,169.95,169.9,5.883]
[1747594157180,66.78,169.96,169.85,66.78]
[1747594158479,2.79459545,169.95,169.85,66.78]
[1747594158791,5.8832,169.91,169.86,5.8846]
[1747594159082,66.78,169.91,169.86,5.8846]
[1747594159676,66.78,169.91,169.85,66.78]
[1747594159880,66.78,169.91,169.88,5.884]
[1747594160381,72.6632,169.91,169.87,5.8842]
[1747594161186,66.78,169.91,169.85,66.78]
[1747594161378,133.54,169.91,169.81,68.6825]
[1747594161579,14.13663372,169.89,169.77,68.7822]
[1747594162177,1.9766,169.88,169.77,66.76]
[1747594162371,4.7704312,169.88,169.77,66.76]
[1747594162575,14.13663372,169.85,169.77,72.6477]
[1747594162779,133.52,169.84,169.73,68.7079]
[1747594163382,1.9766,169.88,169.73,68.7079]
[1747594163585,66.76,169.88,169.73,82.84453372]
[1747594164184,66.76,169.88,169.74,11.7775]
[1747594165185,66.76,169.88,169.86,5.8846]
[1747594165386,66.76,169.88,169.82,66.76]
[1747594167482,66.76,169.88,169.86,5.8846]
[1747594167981,66.76,169.88,169.82,66.76]
[1747594168378,66.76,169.9,169.82,66.76]
[1747594168579,66.76,169.92,169.82,66.76]
[1747594169079,66.76,169.92,169.9,5.8832]
[1747594171287,72.6426,169.92,169.82,66.76]
[1747594171489,66.76,169.92,169.82,66.76]
[1747594171689,66.76,169.92,169.89,5.8834]
[1747594172208,66.76,169.92,169.85,5.885]
[1747594172418,66.76,169.92,169.82,66.76]
[1747594172820,3.992,169.95,169.82,66.76]
[1747594173005,66.76,169.97,169.82,66.76]
[1747594173205,66.76,169.97,169.95,5.8813]
[1747594174796,66.74,169.99,169.91,66.74]
[1747594174997,72.6202,169.99,169.91,66.74]
[1747594176389,66.74,169.99,169.91,66.74]
[1747594176594,66.74,169.99,169.96,5.8809]
[1747594177795,5.8149,170.02,169.91,66.74]
[1747594177796,66.74,170.01,169.91,66.74]
[1747594177991,5.8149,170.02,169.91,66.74]
[1747594178188,3.8683,170.02,169.98,5.8805]
[1747594178489,3.8683,170.02,169.91,66.74]
[1747594179592,5.8799,170.0,169.95,5.8814]
[1747594179895,5.8799,170.0,169.91,66.74]
[1747594180393,3.8683,170.02,169.91,133.46]
[1747594180999,5.8799,170.0,169.96,5.881]
[1747594181297,3.8683,170.02,169.91,133.46]
[1747594182198,5.8808,169.98,169.94,5.8819]
[1747594183401,66.72,169.98,169.91,66.74]
[1747594183596,133.44,169.98,169.91,66.74]
[1747594183793,5.8818,169.95,169.91,5.8829]
[1747594184199,133.44,169.98,169.91,5.8829]
[1747594184504,1.9636,169.97,169.91,5.8829]
[1747594184804,5.8818,169.95,169.92,5.8825]
[1747594185604,5.8813,169.96,169.92,5.8825]
[1747594185804,1.9636,169.97,169.87,66.72]
[1747594186195,5.8817,169.95,169.91,5.8827]
[1747594186396,5.8817,169.95,169.87,66.72]
[1747594186704,5.882,169.94,169.87,66.72]
[1747594186896,1.9636,169.97,169.87,66.72]
[1747594187500,5.8819,169.94,169.9,5.8831]
[1747594187805,1.9636,169.97,169.87,66.72]
[1747594188004,5.8825,169.93,169.89,5.8834]
[1747594188805,5.882,169.94,169.9,5.8833]
[1747594189008,1.9636,169.97,169.87,66.72]
[1747594189305,2.82339704,169.96,169.87,66.72]
[1747594189501,5.8825,169.93,169.89,5.8834]
[1747594189803,1.9636,169.97,169.87,66.72]
[1747594189994,5.8832,169.91,169.87,66.72]
[1747594190199,66.7,169.93,169.87,66.72]
[1747594190696,66.7,169.93,169.87,72.6042]
[1747594191206,5.8836,169.9,169.87,66.72]
[1747594191702,5.8836,169.9,169.83,66.72]
[1747594192310,5.8839,169.89,169.83,66.72]
[1747594192505,133.42,169.93,169.83,66.72]
[1747594192700,2.82564615,169.92,169.84,5.8851]
[1747594192900,2.82564615,169.91,169.83,66.72]
[1747594193102,2.82564615,169.9,169.83,66.72]
[1747594193303,2.82541131,169.89,169.83,66.72]
[1747594193499,133.42,169.93,169.85,5.8848]
[1747594193711,2.8260325,169.92,169.85,5.8848]
[1747594193900,5.8843,169.88,169.84,5.8853]
[1747594194306,133.42,169.93,169.83,66.72]
[1747594194506,2.82666024,169.92,169.83,66.72]
[1747594194707,2.82666024,169.91,169.83,66.72]
[1747594194907,2.82666024,169.9,169.83,66.72]
[1747594195205,133.42,169.93,169.87,5.8841]
[1747594195502,2.82708515,169.92,169.83,66.72]
[1747594195706,5.8834,169.9,169.86,5.8844]
[1747594196108,5.8834,169.9,169.83,66.72]
[1747594196813,5.8834,169.9,169.86,5.8843]
[1747594197014,5.8834,169.9,169.83,66.72]
[1747594197215,9.2082343,169.95,169.83,66.72]
[1747594197411,69.52965233,169.94,169.91,5.8827]
[1747594197607,9.2082343,169.95,169.85,66.7]
[1747594197812,2.8300999,169.94,169.86,1.9477]
[1747594198009,72.0440343,169.95,169.86,3.8685]
[1747594198202,77.9258343,169.95,169.86,3.8685]
[1747594198408,72.0440343,169.95,169.86,3.8685]
[1747594199015,5.8815,169.96,169.86,3.8685]
[1747594199211,2.83057457,169.95,169.86,1.9477]
[1747594199410,2.83057457,169.94,169.85,66.72]
[1747594199714,8.71307457,169.93,169.85,66.72]
[1747594199915,5.8825,169.93,169.89,5.8833]
[1747594200412,68.6679,169.96,169.85,66.72]
[1747594200715,2.82819995,169.95,169.83,66.72]
[1747594201017,2.82819995,169.94,169.85,5.8849]
[1747594201220,71.51719995,169.93,169.85,5.8849]
[1747594201417,2.82819995,169.92,169.85,5.8849]
[1747594201618,69.52819995,169.91,169.83,66.72]
[1747594201810,66.7,169.91,169.83,66.72]
[1747594202919,66.7,169.91,169.9,5.8833]
[1747594204124,66.7,169.91,169.89,5.8835]
[1747594204620,66.7,169.91,169.9,5.8833]
[1747594205122,66.68,169.94,169.85,2.0108]
[1747594205421,2.83045358,169.93,169.85,2.0108]
[1747594205619,2.8302661,169.92,169.85,5.8847]
[1747594205818,2.8302661,169.91,169.85,5.8847]
[1747594206122,2.8302661,169.9,169.83,66.72]
[1747594206310,69.5102661,169.89,169.83,66.72]
[1747594206517,66.68,169.89,169.83,66.72]
[1747594206716,66.68,169.89,169.79,66.74]
[1747594206923,1.8766,169.88,169.79,66.74]
[1747594207119,5.8846,169.87,169.82,5.8857]
[1747594207625,7.7608,169.88,169.83,5.8855]
[1747594207822,1.8766,169.88,169.83,5.8855]
[1747594208218,5.8846,169.87,169.84,5.8853]
[1747594208424,5.8846,169.87,169.79,66.74]
[1747594208831,5.8846,169.87,169.83,5.8856]
[1747594209028,2.82982317,169.86,169.79,66.74]
[1747594209221,2.82982317,169.85,169.77,7.28571619]
[1747594209425,69.50982317,169.84,169.77,7.28571619]
[1747594209625,2.82687084,169.83,169.77,7.28571619]
[1747594209826,66.68,169.84,169.77,7.28571619]
[1747594210027,2.82675179,169.83,169.77,7.28571619]
[1747594210328,5.8863,169.82,169.79,5.8869]
[1747594210728,5.8858,169.83,169.8,5.8868]
[1747594210928,66.68,169.84,169.77,7.28571619]
[1747594211129,2.82536617,169.83,169.77,7.28571619]
[1747594211335,66.68,169.84,169.77,7.28571619]
[1747594211634,2.82417817,169.83,169.79,5.887]
[1747594211933,69.50382039,169.82,169.77,7.28571619]
[1747594212134,2.82382039,169.81,169.7,66.68]
[1747594212435,5.8877,169.78,169.73,5.8891]
[1747594212629,66.68,169.77,169.73,5.8891]
[1747594212825,66.68,169.77,169.74,5.8888]
[1747594213129,66.68,169.77,169.7,66.68]
[1747594213633,66.68,169.78,169.7,66.68]
[1747594213833,66.68,169.78,169.71,1.9552]
[1747594214131,66.68,169.78,169.77,5.8878]
[1747594215834,4.0085,169.82,169.78,5.8874]
[1747594216043,66.68,169.81,169.78,5.8874]
[1747594216740,66.68,169.81,169.79,5.8871]
[1747594216938,66.68,169.81,169.72,1.8708]
[1747594217539,66.68,169.81,169.79,5.8871]
[1747594218044,72.5665,169.81,169.77,5.8877]
[1747594218248,72.5665,169.81,169.72,1.8708]
[1747594218249,66.68,169.81,169.72,1.8708]
[1747594218435,27.0,169.92,169.73,1.9305]
[1747594218634,66.68,169.88,169.85,5.8848]
[1747594218836,66.68,169.88,169.78,66.7]
[1747594219036,66.68,169.88,169.85,5.8848]
[1747594219239,66.68,169.88,169.79,2.037]
[1747594219649,66.68,169.88,169.85,5.8848]
[1747594219839,66.68,169.88,169.79,2.037]
[1747594220036,66.68,169.88,169.79,70.5916]
[1747594220236,66.68,169.88,169.87,5.8843]
[1747594220545,66.68,169.88,169.79,70.5916]
[1747594220734,66.68,169.88,169.79,2.037]
[1747594220939,66.68,169.88,169.77,66.7]
[1747594221438,72.5642,169.88,169.77,66.7]
[1747594221647,66.68,169.88,169.77,66.7]
[1747594221848,2.84752012,169.87,169.77,66.7]
[1747594222037,66.68,169.88,169.77,66.7]
[1747594222543,66.7,169.89,169.85,5.885]
[1747594222746,133.36,169.89,169.78,1.9498]
[1747594222945,133.36,169.89,169.79,66.66]
[1747594223945,139.2437,169.89,169.79,66.66]
[1747594224143,133.36,169.89,169.79,66.66]
[1747594224342,5.8846,169.87,169.79,66.66]
[1747594225044,5.8841,169.88,169.83,5.8855]
[1747594225344,66.66,169.9,169.82,66.7]
[1747594225540,66.66,169.9,169.86,5.8844]
[1747594226141,66.66,169.9,169.88,5.8838]
[1747594226345,66.66,169.9,169.82,66.7]
[1747594228047,66.66,169.9,169.88,5.8839]
[1747594228243,66.7,169.93,169.82,66.7]
[1747594228444,139.2223,169.93,169.82,66.7]
[1747594228640,133.34,169.93,169.82,66.7]
[1747594229540,66.7,169.93,169.82,66.7]
[1747594229744,66.64,169.94,169.82,66.7]
[1747594231145,66.64,169.94,169.91,5.8826]
[1747594231640,66.64,169.94,169.87,66.68]
[1747594231944,66.64,169.94,169.91,5.8828]
[1747594232151,66.64,169.94,169.87,66.68]
[1747594232450,2.84301183,169.93,169.87,66.68]
[1747594232651,5.8832,169.91,169.87,72.5641]
[1747594232950,5.8832,169.91,169.87,5.8841]
[1747594233155,66.64,169.94,169.83,133.32]
[1747594233353,2.84313029,169.93,169.83,133.32]
[1747594233649,8.72583029,169.92,169.88,5.8839]
[1747594233843,5.8827,169.92,169.88,5.8839]
[1747594234043,66.64,169.94,169.81,2.0213]
[1747594234044,2.84343587,169.91,169.81,2.0213]
[1747594234244,80.81663372,169.92,169.81,66.68]
[1747594234453,14.13663372,169.88,169.77,66.68]
[1747594234653,141.97481899,169.87,169.77,66.68]
[1747594234951,2.84271899,169.86,169.77,66.68]
[1747594235145,2.84271899,169.85,169.74,508.68]
[1747594235346,5.8867,169.81,169.76,5.8879]
[1747594235545,66.62,169.8,169.73,68.5783]
[1747594235952,72.507,169.8,169.76,5.8878]
[1747594236152,66.62,169.8,169.73,68.5783]
[1747594237553,66.62,169.8,169.77,5.8877]
[1747594237748,66.62,169.8,169.73,68.5783]
[1747594239656,66.62,169.8,169.76,5.8879]
[1747594239850,66.62,169.8,169.73,68.5783]
[1747594240749,66.62,169.8,169.79,5.8871]
[1747594240948,66.62,169.8,169.73,68.5783]
[1747594241350,66.62,169.8,169.78,5.8874]
[1747594241757,66.62,169.8,169.73,68.5783]
[1747594242957,72.5068,169.8,169.73,68.5783]
[1747594243659,72.5068,169.8,169.75,5.8883]